bitfinex-derivatives/quotes_BTCF0:USTF0_20240913
["timestamp","ask_amount","ask_price","bid_price","bid_amount"]
[1726262857208,0.12344272,60299.0,60298.0,0.252866]
[1726262861425,0.12344328,60299.0,60298.0,0.252866]
[1726262863311,0.03200698,60299.0,60298.0,0.252866]
[1726262863710,0.11487298,60299.0,60298.0,0.17]
[1726262864212,0.11487298,60299.0,60298.0,0.1]
[1726262864607,0.082868,60297.0,60296.0,0.3608]
[1726262864814,0.19884326,60297.0,60296.0,0.4608]
[1726262865113,0.23085024,60297.0,60296.0,0.4608]
[1726262866017,0.15545193,60297.0,60296.0,0.3608]
[1726262866208,0.15545221,60297.0,60296.0,0.5328]
[1726262866405,0.15545221,60297.0,60296.0,0.5348]
[1726262867617,0.07258421,60297.0,60296.0,0.5348]
[1726262869725,0.13253482,60297.0,60296.0,0.5348]
[1726262869913,0.07258421,60297.0,60296.0,0.61767]
[1726262870116,0.07258421,60297.0,60296.0,0.5348]
[1726262871120,0.07258414,60297.0,60296.0,0.5348]
[1726262871418,0.18110897,60297.0,60296.0,0.5348]
[1726262871815,0.12344447,60297.0,60296.0,0.5348]
[1726262872022,0.18110897,60297.0,60296.0,0.5348]
[1726262874022,0.12344447,60297.0,60296.0,0.5348]
[1726262874322,0.20631247,60297.0,60296.0,0.3648]
[1726262874523,0.20631247,60297.0,60296.0,0.5348]
[1726262875415,0.15545214,60297.0,60296.0,0.5348]
[1726262876725,0.07258414,60297.0,60296.0,0.61767]
[1726262877415,0.03200729,60297.0,60296.0,0.61767]
[1726262877922,0.07258414,60297.0,60296.0,0.61767]
[1726262878122,0.12344435,60297.0,60296.0,0.61767]
[1726262878320,0.03200729,60297.0,60296.0,0.61767]
[1726262880920,0.03200631,60297.0,60296.0,0.61767]
[1726262882429,0.03200631,60297.0,60296.0,0.25687]
[1726262882631,0.03200631,60297.0,60296.0,0.61767]
[1726262883629,0.03200631,60297.0,60296.0,0.72457]
[1726262884428,0.11602937,60300.0,60297.0,0.082868]
[1726262884627,0.2309006,60300.0,60297.0,0.082868]
[1726262884826,0.03200623,60299.0,60297.0,0.082868]
[1726262885131,0.03200623,60298.0,60297.0,0.082868]
[1726262885644,0.03200623,60298.0,60297.0,0.083868]
[1726262886433,0.03200623,60298.0,60297.0,0.002]
[1726262886638,0.15544955,60298.0,60297.0,0.002]
[1726262888833,0.23089685,60298.0,60297.0,0.002]
[1726262889033,0.15544941,60298.0,60297.0,0.002]
[1726262889333,0.15545183,60298.0,60297.0,0.002]
[1726262890537,0.51086062,60306.0,60297.0,0.002]
[1726262890538,0.082852,60309.0,60297.0,0.002]
[1726262890734,0.3653,60322.0,60305.0,0.443657]
[1726262890735,0.11598763,60311.0,60305.0,0.443657]
[1726262891036,0.3608,60323.0,60312.0,0.082848]
[1726262891335,0.3608,60323.0,60306.0,0.1137]
[1726262891336,0.3608,60323.0,60321.0,0.1]
[1726262891524,0.3608,60323.0,60313.0,0.1047]
[1726262891727,0.11585671,60318.0,60313.0,0.187546]
[1726262891927,0.3608,60323.0,60317.0,0.1]
[1726262892132,0.3608,60323.0,60321.0,0.17]
[1726262893233,0.3678,60323.0,60321.0,0.17]
[1726262893432,0.11026379,60322.0,60321.0,0.17]
[1726262893632,0.11026379,60322.0,60321.0,0.66832]
[1726262893835,0.18886483,60323.0,60322.0,0.580154]
[1726262894034,0.18886483,60323.0,60322.0,0.750154]
[1726262894238,0.18186483,60329.0,60327.0,0.082827]
[1726262894435,0.18186483,60329.0,60321.0,0.96284]
[1726262894436,0.18184005,60329.0,60328.0,0.5308]
[1726262894636,0.18184005,60330.0,60328.0,0.613626]
[1726262894839,0.00774005,60330.0,60329.0,0.252825]
[1726262895043,0.00774005,60332.0,60329.0,0.17]
[1726262895239,0.00474005,60332.0,60331.0,0.252822]
[1726262895543,0.3608,60348.0,60331.0,1.1308]
[1726262895741,0.3608,60348.0,60344.0,0.17]
[1726262896261,0.0018035,60346.0,60345.0,0.49712]
[1726262896433,0.0018035,60346.0,60345.0,0.77]
[1726262896631,0.3608,60373.0,60345.0,1.26712]
[1726262896830,0.05937526,60372.0,60366.0,0.252774]
[1726262897135,0.0593723,60372.0,60366.0,0.17]
[1726262897344,0.0593723,60372.0,60359.0,0.3608]
[1726262897345,0.3608,60373.0,60371.0,0.17]
[1726262897638,0.3608,60379.0,60371.0,0.5308]
[1726262897845,0.3608,60379.0,60372.0,0.17]
[1726262898045,0.3608,60373.0,60372.0,0.17]
[1726262898540,0.40133372,60373.0,60372.0,0.17]
[1726262898734,0.45213955,60373.0,60372.0,0.17]
[1726262898935,0.40133372,60373.0,60372.0,0.17]
[1726262899343,0.3608,60373.0,60372.0,0.17]
[1726262899738,0.3608,60379.0,60372.0,0.17]
[1726262899938,0.04053346,60378.0,60372.0,0.17]
[1726262900140,0.04053346,60378.0,60364.0,0.44976727]
[1726262900141,0.04053346,60377.0,60376.0,0.17]
[1726262900438,0.36538275,60438.0,60376.0,0.17]
[1726262900439,0.11476117,60381.0,60376.0,0.17]
[1726262900637,0.11476117,60390.0,60380.0,0.5308]
[1726262900844,0.11476117,60387.0,60380.0,0.5308]
[1726262901041,0.11476117,60387.0,60385.0,0.3608]
[1726262901241,0.50834964,60396.0,60386.0,0.3608]
[1726262901446,0.11503522,60394.0,60393.0,0.17]
[1726262901643,0.0005,60394.0,60393.0,0.17]
[1726262901843,0.00230313,60394.0,60393.0,0.17]
[1726262902437,0.00230313,60394.0,60389.0,0.17]
[1726262902643,0.08274,60391.0,60386.0,0.3618]
[1726262902839,0.08274,60391.0,60390.0,0.16819687]
[1726262903040,0.08274,60391.0,60386.0,0.3618]
[1726262903235,0.3608,60388.0,60366.0,0.0084]
[1726262903545,0.3608,60388.0,60349.0,0.3608]
[1726262903546,0.08279,60354.0,60353.0,0.0084]
[1726262903742,0.082772,60368.0,60349.0,0.3608]
[1726262903743,0.3608,60359.0,60349.0,0.3608]
[1726262904145,0.3608,60359.0,60330.0,0.1188]
[1726262904146,0.3608,60352.0,60337.0,0.24]
[1726262904449,0.082811,60339.0,60337.0,0.24]
[1726262904944,0.08281,60340.0,60330.0,0.24]
[1726262905144,0.3608,60341.0,60330.0,0.24]
[1726262905448,0.3608,60331.0,60324.0,0.24]
[1726262905649,0.3608,60331.0,60323.0,0.3608]
[1726262905944,0.3608,60331.0,60317.0,0.24]
[1726262905945,0.082835,60322.0,60317.0,0.24]
[1726262906647,0.3608,60336.0,60320.0,0.3608]
[1726262906839,0.3608,60344.0,60328.0,0.24]
[1726262907147,0.443612,60339.0,60330.0,0.014]
[1726262907834,0.443612,60339.0,60328.0,0.25]
[1726262908242,0.001,60331.0,60328.0,0.25]
[1726262908550,0.001,60331.0,60328.0,0.24]
[1726262908746,0.001,60331.0,60330.0,0.014]
[1726262909344,0.3618,60339.0,60330.0,0.017]
[1726262909756,0.3608,60334.0,60330.0,0.017]
[1726262909945,0.082819,60333.0,60330.0,0.017]
[1726262910145,0.082819,60333.0,60320.0,0.3608]
[1726262910146,0.580059,60333.0,60320.0,0.3608]
[1726262910448,0.082836,60321.0,60314.0,0.0039]
[1726262910746,0.443638,60320.0,60308.0,0.24]
[1726262910947,0.082839,60319.0,60308.0,0.24]
[1726262911347,0.08284,60318.0,60306.0,0.082855]
[1726262911549,0.24,60316.0,60302.0,0.36196]
[1726262911748,0.3608,60312.0,60298.0,0.0039]
[1726262911942,0.082871,60296.0,60289.0,0.0039]
[1726262912148,0.3608,60301.0,60288.0,0.3608]
[1726262912149,0.082878,60291.0,60288.0,0.3608]
[1726262912440,0.082879,60290.0,60288.0,0.3608]
[1726262912642,0.24,60293.0,60276.0,0.0039]
[1726262912643,0.6008,60293.0,60276.0,0.3608]
[1726262912838,0.6008,60293.0,60267.0,0.0039]
[1726262912839,0.3608,60277.0,60267.0,0.0039]
[1726262913043,0.3608,60277.0,60256.0,0.0039]
[1726262913044,0.082913,60265.0,60256.0,0.0039]
[1726262913242,0.082913,60265.0,60254.0,0.24]
[1726262913243,0.3608,60263.0,60254.0,0.24]
[1726262913546,0.082913,60265.0,60249.0,0.24]
[1726262913743,0.082913,60265.0,60250.0,0.3608]
[1726262913942,0.3608,60260.0,60250.0,0.3608]
[1726262914344,0.3508,60260.0,60250.0,0.3608]
[1726262914652,0.3508,60260.0,60240.0,0.0039]
[1726262914653,0.082935,60249.0,60240.0,0.0039]
[1726262914848,0.3608,60251.0,60229.0,0.0039]
[1726262914849,0.3608,60241.0,60229.0,0.0039]
[1726262915048,0.082959,60231.0,60228.0,0.3608]
[1726262915449,0.24,60232.0,60228.0,0.3608]
[1726262915450,0.19849196,60232.0,60228.0,0.3608]
[1726262915642,0.3608,60234.0,60228.0,0.3608]
[1726262915843,0.6008,60234.0,60228.0,0.3608]
[1726262916044,0.082962,60230.0,60228.0,0.3608]
[1726262916245,0.24,60229.0,60228.0,0.3608]
[1726262916546,0.3608,60234.0,60228.0,0.3608]
[1726262916747,0.0039,60244.0,60242.0,0.082943]
[1726262916948,0.0029,60257.0,60248.0,0.082935]
[1726262917153,0.0029,60257.0,60254.0,0.3608]
[1726262917542,0.0029,60257.0,60253.0,0.24]
[1726262917947,0.0029,60257.0,60249.0,0.3608]
[1726262918155,0.0029,60257.0,60248.0,0.084935]
[1726262918156,0.0039,60257.0,60248.0,0.084935]
[1726262919174,0.0029,60257.0,60248.0,0.082935]
[1726262919348,0.0289,60257.0,60248.0,0.082935]
[1726262920254,0.3608,60253.0,60248.0,0.082935]
[1726262921354,0.3608,60253.0,60248.0,0.083935]
[1726262921852,0.3608,60253.0,60248.0,0.082935]
[1726262922052,0.3608,60253.0,60244.0,0.4]
[1726262922053,0.002,60253.0,60244.0,0.7608]
[1726262922256,0.002,60253.0,60251.0,0.082931]
[1726262922945,0.006,60253.0,60251.0,0.082931]
[1726262923360,0.004,60253.0,60251.0,0.082931]
[1726262923756,0.0029,60257.0,60251.0,0.082931]
[1726262924059,0.3738,60253.0,60251.0,0.001]
[1726262924255,0.45673,60253.0,60251.0,0.001]
[1726262924647,0.98085,60252.0,60251.0,0.001]
[1726262925052,1.58085,60252.0,60251.0,0.001]
[1726262925359,1.58085,60252.0,60240.0,0.0039]
[1726262925360,0.082945,60242.0,60240.0,0.0039]
[1726262925559,0.3608,60241.0,60234.0,0.082955]
[1726262925862,0.3608,60241.0,60231.0,0.3608]
[1726262926257,0.3608,60241.0,60224.0,0.082968]
[1726262926258,0.3608,60234.0,60224.0,0.082968]
[1726262926462,0.3608,60226.0,60224.0,0.082968]
[1726262926664,0.3608,60226.0,60211.0,0.0039]
[1726262926850,0.3608,60226.0,60210.0,0.7608]
[1726262926851,0.3608,60226.0,60210.0,0.36192]
[1726262927047,0.082979,60217.0,60210.0,0.443787]
[1726262927276,0.082971,60223.0,60210.0,0.3608]
[1726262927564,0.7608,60226.0,60217.0,0.082978]
[1726262927758,0.082972,60222.0,60211.0,0.082986]
[1726262928058,0.082972,60222.0,60214.0,0.082982]
[1726262928652,0.082973,60221.0,60214.0,0.082982]
[1726262929952,0.36268,60226.0,60214.0,0.082982]
[1726262929953,1e-06,60226.0,60224.0,0.082968]
[1726262930154,0.0039,60244.0,60243.0,0.082943]
[1726262930353,0.3608,60255.0,60243.0,0.082943]
[1726262930354,0.3608,60255.0,60243.0,0.3608]
[1726262930867,0.3608,60255.0,60241.0,0.4]
[1726262930868,0.443726,60255.0,60246.0,0.082938]
[1726262931160,0.443726,60255.0,60241.0,0.4]
[1726262931161,0.3608,60255.0,60241.0,0.4]
[1726262931354,0.3608,60255.0,60248.0,0.082936]
[1726262931659,0.3618,60255.0,60241.0,0.7608]
[1726262932160,0.3618,60255.0,60247.0,0.082936]
[1726262933367,0.3618,60255.0,60248.0,0.082935]
[1726262934266,0.3608,60255.0,60248.0,0.082935]
[1726262934463,0.3618,60255.0,60248.0,0.082935]
[1726262935261,0.444726,60255.0,60248.0,0.082935]
[1726262935858,0.08295,60238.0,60237.0,0.0039]
[1726262936067,0.082957,60233.0,60223.0,0.3647]
[1726262936276,0.443757,60233.0,60223.0,0.3608]
[1726262936465,0.082957,60233.0,60223.0,0.3608]
[1726262936864,0.3608,60236.0,60223.0,0.3608]
[1726262936865,0.3608,60228.0,60223.0,0.3608]
[1726262937062,0.4,60225.0,60223.0,0.3608]
[1726262937369,0.082969,60224.0,60223.0,0.3608]
[1726262937567,0.581129,60224.0,60223.0,0.3718]
[1726262937773,1.181129,60224.0,60223.0,0.011]
[1726262938171,0.082977,60219.0,60213.0,0.082983]
[1726262938472,0.3608,60218.0,60212.0,0.3608]
[1726262939368,0.3608,60218.0,60212.0,0.443785]
[1726262939566,0.08298,60216.0,60212.0,0.443785]
[1726262940067,0.082984,60214.0,60212.0,0.3608]
[1726262940284,0.001,60218.0,60212.0,0.3618]
[1726262940465,0.001,60218.0,60217.0,0.3608]
[1726262940767,0.001,60218.0,60216.0,0.082979]
[1726262941077,0.08297,60224.0,60217.0,0.082978]
[1726262941256,0.08297,60224.0,60219.0,0.082975]
[1726262942458,0.08297,60223.0,60219.0,0.082975]
[1726262942867,0.08297,60223.0,60217.0,0.3668]
[1726262942868,0.082972,60222.0,60217.0,0.3668]
[1726262943062,0.082972,60222.0,60217.0,0.3608]
[1726262943257,0.082974,60220.0,60219.0,0.006]
[1726262943470,0.482974,60220.0,60219.0,0.006]
[1726262943672,0.082977,60218.0,60217.0,0.3608]
[1726262943966,0.082977,60218.0,60188.0,0.09791292]
[1726262943967,0.082985,60213.0,60202.0,0.0039]
[1726262944173,0.082985,60213.0,60200.0,0.30485227]
[1726262944174,0.3608,60208.0,60200.0,0.29645227]
[1726262944367,0.3608,60208.0,60193.0,0.083011]
[1726262944368,0.083007,60197.0,60193.0,0.13196746]
[1726262944560,0.083007,60197.0,60193.0,0.083011]
[1726262944561,0.3608,60196.0,60193.0,0.083011]
[1726262945670,0.083009,60195.0,60186.0,0.0039]
[1726262945867,0.3608,60196.0,60186.0,0.3608]
[1726262946067,0.0084,60208.0,60195.0,0.3608]
[1726262946267,0.3608,60213.0,60206.0,0.082993]
[1726262946268,0.3608,60207.0,60206.0,0.082993]
[1726262946473,0.082988,60210.0,60206.0,0.082993]
[1726262946667,0.082988,60210.0,60195.0,0.3608]
[1726262946668,0.4,60209.0,60195.0,0.3608]
[1726262946867,0.3608,60206.0,60195.0,0.3608]
[1726262947063,0.082998,60203.0,60199.0,0.083002]
[1726262947264,0.443802,60200.0,60194.0,0.083009]
[1726262947465,0.083004,60199.0,60194.0,0.083009]
[1726262947768,0.3608,60200.0,60189.0,0.3608]
[1726262947769,0.083005,60198.0,60189.0,0.3608]
[1726262947969,0.083005,60198.0,60189.0,0.443817]
[1726262948169,0.083009,60195.0,60190.0,0.083016]
[1726262948373,0.4,60195.0,60189.0,0.3608]
[1726262948568,0.083015,60191.0,60189.0,0.3608]
[1726262948874,0.4,60195.0,60189.0,0.3608]
[1726262948875,0.083016,60190.0,60189.0,0.3608]
[1726262949199,0.003,60208.0,60190.0,0.4984]
[1726262949470,0.4,60217.0,60189.0,0.8271]
[1726262949471,0.0084,60215.0,60214.0,0.082983]
[1726262949675,0.082965,60227.0,60215.0,0.082981]
[1726262949871,0.082967,60226.0,60220.0,0.3608]
[1726262950276,0.4,60223.0,60220.0,0.3608]
[1726262950478,0.443758,60233.0,60220.0,0.3608]
[1726262950479,0.36176001,60233.0,60220.0,0.3608]
[1726262950773,0.36176001,60233.0,60227.0,0.082965]
[1726262950774,0.3608,60233.0,60227.0,0.082965]
[1726262951360,0.3608,60233.0,60226.0,0.3608]
[1726262951778,0.3608,60241.0,60231.0,0.3608]
[1726262952073,0.00084,60245.0,60240.0,0.3608]
[1726262952278,0.483773,60250.0,60240.0,0.3608]
[1726262952463,0.482933,60250.0,60240.0,0.3608]
[1726262952667,0.36164,60252.0,60240.0,0.3608]
[1726262952875,0.3608,60252.0,60241.0,0.082945]
[1726262953375,0.009,60250.0,60241.0,0.082945]
[1726262953966,0.009,60250.0,60243.0,0.082942]
[1726262955173,0.009,60250.0,60244.0,0.082941]
[1726262955972,0.3618,60252.0,60244.0,0.082941]
[1726262956672,0.3608,60252.0,60244.0,0.085941]
[1726262957278,0.3608,60252.0,60244.0,0.003]
[1726262957472,0.3608,60247.0,60244.0,0.003]
[1726262957670,0.3608,60247.0,60244.0,0.01]
[1726262957985,0.3608,60245.0,60231.0,0.0039]
[1726262958183,0.3608,60245.0,60229.0,0.0084]
[1726262958184,0.3608,60234.0,60229.0,0.082961]
[1726262958566,0.3608,60234.0,60217.0,0.3647]
[1726262958771,0.3608,60234.0,60224.0,0.082969]
[1726262958981,0.3608,60234.0,60217.0,0.3608]
[1726262959168,0.08296,60231.0,60224.0,0.082969]
[1726262959483,0.08296,60231.0,60210.0,0.7608]
[1726262959484,0.3608,60225.0,60215.0,0.0039]
[1726262959673,0.3608,60225.0,60215.0,0.08298]
[1726262959674,0.082973,60221.0,60215.0,0.08298]
[1726262959871,0.3608,60225.0,60224.0,0.014]
[1726262960273,1.45892,60225.0,60214.0,0.0039]
[1726262960488,0.443768,60225.0,60210.0,0.360587]
[1726262960674,0.082977,60218.0,60211.0,0.082987]
[1726262960972,0.3608,60217.0,60211.0,0.082987]
[1726262961974,0.443779,60217.0,60211.0,0.082987]
[1726262962574,0.3618,60217.0,60210.0,0.360587]
[1726262962770,0.4,60215.0,60210.0,0.360587]
[1726262962976,0.4,60215.0,60202.0,0.082999]
[1726262962977,0.08299,60209.0,60202.0,0.082999]
[1726262963281,0.3608,60208.0,60202.0,0.082999]
[1726262963475,0.443791,60208.0,60202.0,0.082999]
[1726262963670,0.3608,60208.0,60195.0,0.3608]
[1726262964070,0.083001,60201.0,60195.0,0.3608]
[1726262964579,0.083003,60200.0,60195.0,0.3608]
[1726262965687,0.4,60197.0,60183.0,0.0039]
[1726262965885,0.083013,60192.0,60182.0,0.3608]
[1726262966381,0.40084,60197.0,60190.0,0.083016]
[1726262966587,0.083009,60195.0,60190.0,0.083016]
[1726262966883,0.44381,60194.0,60190.0,0.083016]
[1726262967086,0.001,60192.0,60190.0,0.083016]
[1726262967280,0.001,60192.0,60191.0,0.083014]
[1726262967673,0.001,60192.0,60191.0,0.443814]
[1726262968486,0.082986,60212.0,60191.0,0.8592]
[1726262968688,0.082986,60212.0,60205.0,0.443795]
[1726262968987,0.082986,60212.0,60206.0,0.082993]
[1726262969488,0.082987,60211.0,60207.0,0.082992]
[1726262969687,0.082984,60213.0,60207.0,0.082992]
[1726262969884,0.009,60212.0,60207.0,0.082992]
[1726262970280,0.082986,60212.0,60207.0,0.082992]
[1726262970480,0.092986,60212.0,60207.0,0.082992]
[1726262970681,0.01,60212.0,60207.0,0.082992]
[1726262970881,0.01,60212.0,60209.0,0.082989]
[1726262971581,0.49824,60211.0,60209.0,0.082989]
[1726262971784,0.49824,60211.0,60193.0,0.0039]
[1726262971785,0.7608,60210.0,60193.0,0.0039]
[1726262972091,0.7608,60210.0,60197.0,0.3608]
[1726262972392,0.7608,60210.0,60203.0,0.082997]
[1726262972590,0.7608,60210.0,60197.0,0.3608]
[1726262972791,0.3608,60210.0,60209.0,0.08299]
[1726262973289,0.3618,60210.0,60209.0,0.08299]
[1726262975090,0.3608,60210.0,60209.0,0.08299]
[1726262975686,0.3618,60210.0,60209.0,0.08299]
[1726262976297,0.3738,60210.0,60209.0,0.08299]
[1726262976497,1e-06,60210.0,60209.0,0.16598]
[1726262976795,0.06003596,60229.0,60226.0,0.082966]
[1726262976995,0.11528966,60240.0,60239.0,0.082948]
[1726262977184,0.11528966,60246.0,60244.0,0.082941]
[1726262977385,0.5080484,60255.0,60239.0,0.8588]
[1726262977386,0.11528966,60249.0,60248.0,0.082936]
[1726262977581,0.40141544,60249.0,60248.0,0.082936]
[1726262979296,0.3708,60249.0,60248.0,0.083936]
[1726262979689,1.46872,60249.0,60238.0,0.082949]
[1726262979890,0.3608,60243.0,60239.0,0.082948]
[1726262980188,0.3608,60243.0,60234.0,0.3608]
[1726262980390,0.11527711,60241.0,60223.0,0.0039]
[1726262980592,0.3608,60243.0,60222.0,0.3608]
[1726262980593,0.3608,60238.0,60222.0,0.3608]
[1726262981194,0.3608,60238.0,60236.0,0.082952]
[1726262982618,0.47607711,60238.0,60236.0,0.082952]
[1726262983096,0.3608,60238.0,60237.0,0.082951]
[1726262983299,0.11527711,60239.0,60238.0,0.08295]
[1726262983504,0.11527711,60240.0,60238.0,0.08295]
[1726262983692,0.04062564,60239.0,60238.0,0.08295]
[1726262984000,0.04062462,60240.0,60238.0,0.08295]
[1726262984295,0.04062462,60240.0,60239.0,0.082948]
[1726262984686,0.04062462,60240.0,60236.0,0.002]
[1726262984894,0.11532878,60239.0,60236.0,0.002]
[1726262985197,0.11532878,60239.0,60235.0,0.082954]
[1726262985392,0.3608,60236.0,60235.0,0.082954]
[1726262986089,0.47612878,60236.0,60235.0,0.082954]
[1726262986295,0.40142597,60236.0,60235.0,0.082954]
[1726262986598,0.40142597,60236.0,60235.0,0.086954]
[1726262986797,0.04062597,60236.0,60235.0,0.086954]
[1726262986993,0.3608,60236.0,60235.0,0.086954]
[1726262987497,0.082952,60236.0,60235.0,0.004]
[1726262987887,0.443752,60236.0,60222.0,0.3647]
[1726262988192,0.443752,60236.0,60235.0,0.004]
[1726262988592,0.082952,60236.0,60235.0,0.004]
[1726262988895,0.082952,60236.0,60235.0,0.086954]
[1726262989199,0.443752,60236.0,60235.0,0.086954]
[1726262989604,0.444752,60236.0,60235.0,0.082954]
[1726262990603,0.082954,60235.0,60229.0,0.082962]
[1726262991296,0.11540334,60232.0,60229.0,0.082962]
[1726262991901,0.13188953,60232.0,60229.0,0.082962]
[1726262992103,0.04062559,60231.0,60229.0,0.082962]
[1726262992304,0.04062559,60230.0,60229.0,0.082962]
[1726262992602,0.04062557,60230.0,60229.0,0.082962]
[1726262993596,0.11542865,60231.0,60229.0,0.082962]
[1726262993904,0.04062557,60230.0,60229.0,0.082962]
[1726262994104,0.04062557,60230.0,60229.0,0.087962]
[1726262994895,0.08296,60231.0,60229.0,0.087962]
[1726262995098,0.082961,60230.0,60229.0,0.005]
[1726262996900,0.08296,60231.0,60226.0,0.082966]
[1726262997501,0.082961,60230.0,60229.0,0.005]
[1726262997998,0.08296,60231.0,60226.0,0.089966]
[1726262997999,0.082964,60228.0,60226.0,0.089966]
[1726262998333,0.08396,60231.0,60226.0,0.089966]
[1726262998334,0.082965,60227.0,60226.0,0.089966]
[1726262999598,0.082965,60227.0,60226.0,0.082966]
[1726263000309,0.083965,60227.0,60226.0,0.089966]
[1726263001800,0.083965,60227.0,60226.0,0.007]
[1726263002508,0.083965,60227.0,60226.0,0.089966]
[1726263003607,0.001,60227.0,60226.0,0.089966]
[1726263004718,0.001,60227.0,60226.0,0.007]
[1726263005016,1.782885,60227.0,60212.0,0.0078]
[1726263005207,1.782885,60227.0,60205.0,0.3608]
[1726263005208,0.082984,60214.0,60210.0,0.082988]
[1726263005413,0.24,60212.0,60202.0,0.00128]
[1726263005707,0.3608,60204.0,60197.0,0.1163]
[1726263005909,0.3608,60204.0,60200.0,0.083001]
[1726263007008,0.444797,60204.0,60200.0,0.083001]
[1726263007206,0.444797,60204.0,60197.0,0.007]
[1726263007207,0.083004,60199.0,60197.0,0.007]
[1726263007407,0.083004,60199.0,60198.0,0.00227488]
[1726263007709,0.24,60202.0,60198.0,0.00227488]
[1726263007909,0.3618,60204.0,60199.0,0.3608]
[1726263008098,0.3618,60204.0,60202.0,0.082999]
[1726263008503,0.3618,60204.0,60203.0,0.08527288]
[1726263009006,0.3608,60204.0,60203.0,0.08527288]
[1726263009714,0.3618,60204.0,60203.0,0.08527288]
[1726263010211,0.3628,60204.0,60203.0,0.08527288]
[1726263010410,0.002,60204.0,60203.0,0.58359288]
[1726263010709,0.7608,60220.0,60203.0,1.10059488]
[1726263010710,0.11579935,60220.0,60203.0,1.10059488]
[1726263010920,0.11579935,60224.0,60220.0,0.082973]
[1726263011112,0.3608,60223.0,60220.0,0.082973]
[1726263011408,0.082967,60226.0,60221.0,0.00227488]
[1726263011816,0.082967,60226.0,60221.0,0.08524788]
[1726263012006,0.3608,60227.0,60221.0,0.00227488]
[1726263012317,0.47564,60233.0,60225.0,0.3608]
[1726263012318,0.00084,60233.0,60225.0,0.3608]
[1726263012514,0.11579935,60236.0,60232.0,0.082958]
[1726263012809,0.08295,60238.0,60232.0,0.082958]
[1726263013017,0.00646579,60240.0,60235.0,0.3608]
[1726263013206,0.3608,60242.0,60235.0,0.443753]
[1726263013506,0.443744,60242.0,60238.0,0.00227488]
[1726263013714,0.082948,60239.0,60238.0,0.00227488]
[1726263014506,0.3608,60241.0,60238.0,0.00227488]
[1726263014913,0.04062348,60240.0,60238.0,0.00227488]
[1726263015115,0.11551264,60239.0,60238.0,0.00227488]
[1726263015412,0.11851264,60240.0,60238.0,0.00227488]
[1726263015619,0.11851264,60240.0,60239.0,0.00227488]
[1726263015620,0.47631264,60240.0,60239.0,0.00227488]
[1726263016010,0.3608,60240.0,60239.0,0.00227488]
[1726263016212,0.47631264,60240.0,60239.0,0.00227488]
[1726263016421,0.55925964,60240.0,60239.0,0.00227488]
[1726263017119,0.19845964,60240.0,60239.0,0.00227488]
[1726263017312,0.11551264,60243.0,60239.0,0.00227488]
[1726263017513,0.19845564,60243.0,60239.0,0.00227488]
[1726263017819,0.12356576,60242.0,60241.0,0.00227488]
[1726263019622,0.13556576,60242.0,60241.0,0.00227488]
[1726263020219,0.094944,60242.0,60241.0,0.00227488]
[1726263021032,0.13556658,60242.0,60241.0,0.00227488]
[1726263021211,0.094944,60242.0,60241.0,0.00227488]
[1726263024921,0.094944,60242.0,60241.0,0.08521988]
[1726263025124,0.012,60242.0,60241.0,0.08521988]
[1726263025927,0.094944,60242.0,60241.0,0.08521988]
[1726263027226,0.096944,60242.0,60241.0,0.08521988]
[1726263028726,0.082944,60242.0,60241.0,0.08521988]
[1726263028931,0.094944,60242.0,60241.0,0.08521988]
[1726263029821,0.096944,60242.0,60241.0,0.08521988]
[1726263030022,0.18847954,60242.0,60241.0,0.08521988]
[1726263030430,0.18847963,60242.0,60241.0,0.08521988]
[1726263030729,0.24532356,60242.0,60241.0,0.08521988]
[1726263030928,0.18847963,60242.0,60241.0,0.08521988]
[1726263031430,0.13756454,60242.0,60241.0,0.08521988]
[1726263032026,0.13556454,60242.0,60241.0,0.08521988]
[1726263032355,0.18647984,60242.0,60241.0,0.08521988]
[1726263032546,0.35037866,60242.0,60241.0,0.36307488]
[1726263032746,0.18647373,60242.0,60241.0,0.00227488]
[1726263032943,0.13556454,60242.0,60241.0,0.08521988]
[1726263033447,0.22681567,60242.0,60241.0,0.08521988]
[1726263033643,0.26743621,60242.0,60241.0,0.08521988]
[1726263034651,0.05262054,60242.0,60241.0,0.08521988]
[1726263035044,0.05262054,60242.0,60241.0,1.86696488]
[1726263035239,0.11536068,60246.0,60241.0,1.78401988]
[1726263035446,0.11536068,60247.0,60246.0,0.082939]
[1726263035746,0.13187167,60254.0,60248.0,0.082936]
[1726263036056,0.13187167,60254.0,60253.0,0.082929]
[1726263036246,0.23129956,60260.0,60256.0,0.082925]
[1726263036247,0.14837956,60258.0,60256.0,0.082925]
[1726263036443,0.14837956,60262.0,60257.0,0.3608]
[1726263036642,0.31323009,60262.0,60259.0,0.00227488]
[1726263036849,0.19926874,60261.0,60259.0,0.00227488]
[1726263037056,0.082916,60263.0,60259.0,0.08519588]
[1726263037441,0.11494581,60262.0,60259.0,0.08519588]
[1726263037657,0.03202881,60261.0,60260.0,0.00227488]
[1726263037860,0.096917,60262.0,60260.0,0.00227488]
[1726263038046,0.03202934,60261.0,60260.0,0.00227488]
[1726263039351,0.14754147,60261.0,60260.0,0.00227488]
[1726263039854,0.14954147,60261.0,60260.0,0.00327488]
[1726263040253,0.03402934,60261.0,60260.0,0.00327488]
[1726263041147,0.03402934,60261.0,60260.0,0.08619388]
[1726263041447,0.14965072,60261.0,60260.0,0.08619388]
[1726263041649,0.03402934,60261.0,60260.0,0.08619388]
[1726263041843,0.002,60261.0,60260.0,0.08619388]